[Event "*** SCC Grand Prix: Titled Tuesday Blitz"]
[Site "Chess.com"]
[Date "2020.07.07"]
[Round "7"]
[White "Beca95"]
[Black "Kildepiotr"]
[Result "0-1"]
[WhiteElo "2882"]
[BlackElo "2624"]
[TimeControl "180+1"]
[EndTime "11:19:23 PDT"]
[Termination "Kildepiotr won by checkmate"]

1. d4 {[%clk 0:02:56.3]} 1... c5 {[%clk 0:02:59.3]} 2. d5 {[%clk 0:02:53.4]}
2... e5 {[%clk 0:02:57.9]} 3. Nc3 {[%clk 0:02:53.3]} 3... d6 {[%clk 0:02:56.3]}
4. e4 {[%clk 0:02:53.7]} 4... Be7 {[%clk 0:02:56.5]} 5. Bb5+ {[%clk 0:02:47.2]}
5... Nd7 {[%clk 0:02:56.5]} 6. a4 {[%clk 0:02:43.6]} 6... Bg5 {[%clk 0:02:55.7]}
7. Nf3 {[%clk 0:02:43.5]} 7... Bxc1 {[%clk 0:02:55.5]} 8. Qxc1 {[%clk
0:02:40.3]} 8... Ne7 {[%clk 0:02:56.1]} 9. Nd2 {[%clk 0:02:37.9]} 9... O-O
{[%clk 0:02:55.4]} 10. Bd3 {[%clk 0:02:34]} 10... Nf6 {[%clk 0:02:55.2]} 11. Nc4
{[%clk 0:02:31.9]} 11... Ng6 {[%clk 0:02:55.2]} 12. g3 {[%clk 0:02:32.3]} 12...
Ne8 {[%clk 0:02:52.8]} 13. Ne3 {[%clk 0:02:30.5]} 13... Ne7 {[%clk 0:02:51.9]}
14. Qd1 {[%clk 0:02:21.4]} 14... f5 {[%clk 0:02:51.3]} 15. exf5 {[%clk
0:02:20.9]} 15... Nxf5 {[%clk 0:02:51.2]} 16. Nxf5 {[%clk 0:02:20.6]} 16... Bxf5
{[%clk 0:02:50.5]} 17. Bxf5 {[%clk 0:02:21.1]} 17... Rxf5 {[%clk 0:02:51.4]} 18.
Qg4 {[%clk 0:02:20.1]} 18... g6 {[%clk 0:02:44.7]} 19. h4 {[%clk 0:02:17.1]}
19... Nf6 {[%clk 0:02:41.5]} 20. Qe2 {[%clk 0:02:16.3]} 20... Qa5 {[%clk
0:02:39.2]} 21. O-O-O {[%clk 0:02:13.4]} 21... a6 {[%clk 0:02:35.6]} 22. f4
{[%clk 0:01:27.6]} 22... b5 {[%clk 0:02:31.6]} 23. Kb1 {[%clk 0:01:27.7]} 23...
b4 {[%clk 0:02:27.7]} 24. Ne4 {[%clk 0:01:27.1]} 24... Nxe4 {[%clk 0:02:25.8]}
25. Qxe4 {[%clk 0:01:28]} 25... Qxa4 {[%clk 0:02:25.7]} 26. h5 {[%clk
0:01:26.7]} 26... Qe8 {[%clk 0:02:09.7]} 27. hxg6 {[%clk 0:01:15.7]} 27... Qxg6
{[%clk 0:02:09.5]} 28. Rh4 {[%clk 0:00:31.7]} 28... exf4 {[%clk 0:01:44.6]} 29.
Rdh1 {[%clk 0:00:29.1]} 29... Re8 {[%clk 0:01:40.9]} 30. Qd3 {[%clk 0:00:19.8]}
30... Re7 {[%clk 0:01:13.1]} 31. Rh6 {[%clk 0:00:18.6]} 31... Qg5 {[%clk
0:01:02.6]} 32. gxf4 {[%clk 0:00:15.5]} 32... Qxf4 {[%clk 0:00:59.4]} 33. Re6
{[%clk 0:00:15.1]} 33... Ref7 {[%clk 0:00:40.8]} 34. Re8+ {[%clk 0:00:14.1]}
34... Kg7 {[%clk 0:00:39.9]} 35. Ka2 {[%clk 0:00:11.9]} 35... c4 {[%clk
0:00:37.7]} 36. Qe2 {[%clk 0:00:12.3]} 36... Rg5 {[%clk 0:00:35.9]} 37. Qe6
{[%clk 0:00:09.9]} 37... b3+ {[%clk 0:00:34.7]} 38. cxb3 {[%clk 0:00:10.4]}
38... cxb3+ {[%clk 0:00:35.4]} 39. Ka3 {[%clk 0:00:10.9]} 39... Rg4 {[%clk
0:00:32.3]} 40. Kxb3 {[%clk 0:00:08.8]} 40... Qa4+ {[%clk 0:00:31.4]} 41. Kc3
{[%clk 0:00:08.7]} 41... Qc4+ {[%clk 0:00:31]} 42. Kd2 {[%clk 0:00:08.1]} 42...
Rg2+ {[%clk 0:00:30.5]} 43. Kd1 {[%clk 0:00:07.4]} 43... Qc2+ {[%clk 0:00:30.2]}
44. Ke1 {[%clk 0:00:06.5]} 44... Qc1# {[%clk 0:00:30.5]} 0-1

[Event "*** SCC Grand Prix: Titled Tuesday Blitz"]
[Site "Chess.com"]
[Date "2020.07.07"]
[Round "7"]
[White "ThePatrick27"]
[Black "MasterKroket"]
[Result "0-1"]
[WhiteElo "2509"]
[BlackElo "2408"]
[TimeControl "180+1"]
[EndTime "11:19:24 PDT"]
[Termination "MasterKroket won by resignation"]

1. d4 {[%clk 0:03:00.9]} 1... Nf6 {[%clk 0:03:00]} 2. c4 {[%clk 0:03:01.2]} 2...
e6 {[%clk 0:03:00.3]} 3. Nc3 {[%clk 0:03:01.5]} 3... Bb4 {[%clk 0:03:00.7]} 4.
e3 {[%clk 0:02:59.7]} 4... O-O {[%clk 0:03:00.8]} 5. Bd3 {[%clk 0:02:59.8]} 5...
c5 {[%clk 0:03:00.3]} 6. Ne2 {[%clk 0:02:59.7]} 6... d5 {[%clk 0:03:00.3]} 7.
O-O {[%clk 0:02:58.7]} 7... Nc6 {[%clk 0:03:00.1]} 8. a3 {[%clk 0:02:57.7]} 8...
Bxc3 {[%clk 0:02:59.9]} 9. bxc3 {[%clk 0:02:58.6]} 9... dxc4 {[%clk 0:03:00]}
10. Bxc4 {[%clk 0:02:58.6]} 10... Qc7 {[%clk 0:03:00.6]} 11. Ng3 {[%clk
0:02:52.7]} 11... e5 {[%clk 0:02:57]} 12. d5 {[%clk 0:02:48.8]} 12... Na5 {[%clk
0:02:53]} 13. Ba2 {[%clk 0:02:44.5]} 13... c4 {[%clk 0:02:42.5]} 14. e4 {[%clk
0:02:42.8]} 14... Ne8 {[%clk 0:02:33.2]} 15. f4 {[%clk 0:02:25.9]} 15... Nd6
{[%clk 0:02:11.6]} 16. fxe5 {[%clk 0:02:07.5]} 16... Nb5 {[%clk 0:02:11.7]} 17.
Bf4 {[%clk 0:01:53.4]} 17... Nxc3 {[%clk 0:02:10.6]} 18. Qh5 {[%clk 0:01:44.8]}
18... Qc5+ {[%clk 0:01:49.3]} 19. Kh1 {[%clk 0:01:43.2]} 19... Nxa2 {[%clk
0:01:46.6]} 20. Rxa2 {[%clk 0:01:40.7]} 20... c3 {[%clk 0:01:43.8]} 21. Raf2
{[%clk 0:01:33.3]} 21... Bd7 {[%clk 0:01:39.6]} 22. Nf5 {[%clk 0:01:19.2]} 22...
Bxf5 {[%clk 0:01:35.1]} 23. Qxf5 {[%clk 0:01:15.9]} 23... Nc4 {[%clk 0:01:25.4]}
24. Bc1 {[%clk 0:01:02.6]} 24... Rae8 {[%clk 0:01:21.1]} 25. Qg4 {[%clk
0:00:41.2]} 25... Nxe5 {[%clk 0:01:17.8]} 26. Qg3 {[%clk 0:00:41.4]} 26... Ng6
{[%clk 0:01:00.1]} 27. h4 {[%clk 0:00:40.3]} 27... Rxe4 {[%clk 0:00:59.1]} 28.
h5 {[%clk 0:00:37.3]} 28... Ne5 {[%clk 0:00:54.2]} 29. Bh6 {[%clk 0:00:28.9]}
29... Ng4 {[%clk 0:00:45.4]} 30. Bxg7 {[%clk 0:00:27.8]} 30... Kxg7 {[%clk
0:00:29.1]} 31. Rf4 {[%clk 0:00:25.1]} 31... Rxf4 {[%clk 0:00:28]} 32. Rxf4
{[%clk 0:00:20.4]} 32... f5 {[%clk 0:00:28.4]} 33. Rxf5 {[%clk 0:00:19.5]} 33...
Rxf5 {[%clk 0:00:27.5]} 34. Qxg4+ {[%clk 0:00:20]} 34... Kf6 {[%clk 0:00:28.2]}
35. Qh4+ {[%clk 0:00:20.5]} 35... Ke5 {[%clk 0:00:26.1]} 36. Qe1+ {[%clk
0:00:19]} 36... Kxd5 {[%clk 0:00:26.4]} 37. Qd1+ {[%clk 0:00:17.9]} 37... Qd4
{[%clk 0:00:26.5]} 38. Qb3+ {[%clk 0:00:18]} 38... Ke4 {[%clk 0:00:23.8]} 39.
Qe6+ {[%clk 0:00:17.7]} 39... Re5 {[%clk 0:00:23]} 40. Qg4+ {[%clk 0:00:17.8]}
40... Kd3 {[%clk 0:00:23.3]} 41. Qf3+ {[%clk 0:00:16.5]} 41... Qe3 {[%clk
0:00:21.4]} 42. Qd1+ {[%clk 0:00:16.4]} 42... Qd2 {[%clk 0:00:20.5]} 43. Qf1+
{[%clk 0:00:16.6]} 43... Kc2 {[%clk 0:00:20]} 0-1

[Event "*** SCC Grand Prix: Titled Tuesday Blitz"]
[Site "Chess.com"]
[Date "2020.07.07"]
[Round "7"]
[White "tteshan"]
[Black "Ariadna_Atreides"]
[Result "0-1"]
[WhiteElo "2261"]
[BlackElo "2077"]
[TimeControl "180+1"]
[EndTime "11:19:24 PDT"]
[Termination "Ariadna_Atreides won by checkmate"]

1. b3 {[%clk 0:02:39.8]} 1... e5 {[%clk 0:02:54]} 2. Bb2 {[%clk 0:02:39.4]} 2...
Nc6 {[%clk 0:02:53.4]} 3. e3 {[%clk 0:02:37.2]} 3... d6 {[%clk 0:02:43.7]} 4.
Bb5 {[%clk 0:02:27.4]} 4... Bd7 {[%clk 0:02:41.4]} 5. Nf3 {[%clk 0:02:19.6]}
5... a6 {[%clk 0:02:40.6]} 6. Be2 {[%clk 0:02:15.5]} 6... f5 {[%clk 0:02:36.6]}
7. O-O {[%clk 0:02:06]} 7... Nf6 {[%clk 0:02:35.6]} 8. h3 {[%clk 0:01:55.1]}
8... Be7 {[%clk 0:02:32.3]} 9. c4 {[%clk 0:01:51]} 9... O-O {[%clk 0:02:30.9]}
10. Nc3 {[%clk 0:01:49.8]} 10... e4 {[%clk 0:02:26.9]} 11. Ne1 {[%clk
0:01:43.4]} 11... Ne5 {[%clk 0:02:24.5]} 12. d3 {[%clk 0:01:38.9]} 12... exd3
{[%clk 0:02:20.9]} 13. Nxd3 {[%clk 0:01:39.8]} 13... Bc6 {[%clk 0:02:09.6]} 14.
Nf4 {[%clk 0:01:31.1]} 14... Qd7 {[%clk 0:02:03.3]} 15. Ncd5 {[%clk 0:01:30.7]}
15... g5 {[%clk 0:01:30.3]} 16. Nxf6+ {[%clk 0:01:25.8]} 16... Bxf6 {[%clk
0:01:28.8]} 17. Nd5 {[%clk 0:01:25.1]} 17... Nf3+ {[%clk 0:01:22.1]} 18. Bxf3
{[%clk 0:01:20.1]} 18... Bxb2 {[%clk 0:01:23]} 19. Rb1 {[%clk 0:01:16.5]} 19...
Bg7 {[%clk 0:01:23.2]} 20. Qd3 {[%clk 0:00:47.3]} 20... Be5 {[%clk 0:01:04.4]}
21. e4 {[%clk 0:00:30.2]} 21... g4 {[%clk 0:00:56]} 22. hxg4 {[%clk 0:00:20.4]}
22... fxg4 {[%clk 0:00:56.9]} 23. Be2 {[%clk 0:00:19.4]} 23... Kh8 {[%clk
0:00:51.7]} 24. g3 {[%clk 0:00:19.3]} 24... h5 {[%clk 0:00:36.9]} 25. Kg2 {[%clk
0:00:18.8]} 25... Qf7 {[%clk 0:00:31.6]} 26. Qe3 {[%clk 0:00:17.1]} 26... Kh7
{[%clk 0:00:21.4]} 27. Rh1 {[%clk 0:00:16.5]} 27... Bxd5 {[%clk 0:00:13.8]} 28.
exd5 {[%clk 0:00:14.9]} 28... Rae8 {[%clk 0:00:12.8]} 29. Rbf1 {[%clk
0:00:14.4]} 29... Bg7 {[%clk 0:00:06.1]} 30. Qg5 {[%clk 0:00:14.5]} 30... Rxe2
{[%clk 0:00:05.1]} 31. Rxh5+ {[%clk 0:00:11.9]} 31... Kg8 {[%clk 0:00:04.6]} 32.
Rfh1 {[%clk 0:00:09.3]} 32... Rxf2+ {[%clk 0:00:04.4]} 33. Kg1 {[%clk
0:00:08.8]} 33... Rf1+ {[%clk 0:00:04.9]} 34. Kg2 {[%clk 0:00:08]} 34... Qf2#
{[%clk 0:00:05.4]} 0-1

[Event "*** SCC Grand Prix: Titled Tuesday Blitz"]
[Site "Chess.com"]
[Date "2020.07.07"]
[Round "7"]
[White "FMOlexandrProhorov"]
[Black "mikheeva86"]
[Result "1-0"]
[WhiteElo "2129"]
[BlackElo "1916"]
[TimeControl "180+1"]
[EndTime "11:19:24 PDT"]
[Termination "FMOlexandrProhorov won by resignation"]

1. Nf3 {[%clk 0:03:00.9]} 1... Nf6 {[%clk 0:02:58.8]} 2. d4 {[%clk 0:02:58.8]}
2... e6 {[%clk 0:02:57.8]} 3. c4 {[%clk 0:02:58.4]} 3... d5 {[%clk 0:02:57.5]}
4. Nc3 {[%clk 0:02:58.3]} 4... Nbd7 {[%clk 0:02:50.1]} 5. Bf4 {[%clk 0:02:55.5]}
5... Bb4 {[%clk 0:02:40.7]} 6. e3 {[%clk 0:02:51.1]} 6... O-O {[%clk 0:02:33]}
7. cxd5 {[%clk 0:02:40.6]} 7... Nxd5 {[%clk 0:02:29.2]} 8. Qc2 {[%clk
0:02:36.9]} 8... Nxf4 {[%clk 0:02:28]} 9. exf4 {[%clk 0:02:37.1]} 9... Nf6
{[%clk 0:02:25.6]} 10. Bd3 {[%clk 0:02:34.4]} 10... b6 {[%clk 0:02:15.9]} 11.
O-O {[%clk 0:02:30.5]} 11... Bb7 {[%clk 0:02:14.2]} 12. Ne4 {[%clk 0:02:05.9]}
12... Be7 {[%clk 0:02:07.3]} 13. Rac1 {[%clk 0:02:00.2]} 13... Rc8 {[%clk
0:01:59]} 14. Rfd1 {[%clk 0:02:00.1]} 14... h6 {[%clk 0:01:52.7]} 15. Nxf6+
{[%clk 0:01:55.9]} 15... Bxf6 {[%clk 0:01:51.2]} 16. Be4 {[%clk 0:01:56.8]}
16... Bxe4 {[%clk 0:01:37.6]} 17. Qxe4 {[%clk 0:01:57.7]} 17... Qe7 {[%clk
0:01:24.5]} 18. Ne5 {[%clk 0:01:47.6]} 18... Bxe5 {[%clk 0:01:20.9]} 19. dxe5
{[%clk 0:01:39.7]} 19... c5 {[%clk 0:01:18.4]} 20. Rd6 {[%clk 0:01:16.6]} 20...
Rfd8 {[%clk 0:01:13]} 21. Rcd1 {[%clk 0:01:16.6]} 21... Rxd6 {[%clk 0:01:09.9]}
22. exd6 {[%clk 0:01:11.4]} 22... Qd7 {[%clk 0:01:06.8]} 23. g4 {[%clk 0:01:06]}
23... Rd8 {[%clk 0:00:48.3]} 24. g5 {[%clk 0:00:49.2]} 24... hxg5 {[%clk
0:00:45.9]} 25. fxg5 {[%clk 0:00:49.4]} 25... Qc8 {[%clk 0:00:40.7]} 26. Rd3
{[%clk 0:00:45.3]} 26... Qb8 {[%clk 0:00:32.1]} 27. Qc6 {[%clk 0:00:40.1]} 27...
Qc8 {[%clk 0:00:27.5]} 28. Qe4 {[%clk 0:00:34.2]} 28... Qb8 {[%clk 0:00:25.9]}
29. Qe5 {[%clk 0:00:32.4]} 29... Qb7 {[%clk 0:00:12.4]} 30. h4 {[%clk
0:00:28.3]} 30... Qc6 {[%clk 0:00:11.4]} 31. h5 {[%clk 0:00:27.3]} 31... Kf8
{[%clk 0:00:10]} 32. h6 {[%clk 0:00:26.8]} 32... Ke8 {[%clk 0:00:08.4]} 33. hxg7
{[%clk 0:00:14.3]} 33... Kd7 {[%clk 0:00:05]} 34. Qf6 {[%clk 0:00:13]} 34... Kc8
{[%clk 0:00:03.4]} 1-0

[Event "*** SCC Grand Prix: Titled Tuesday Blitz"]
[Site "Chess.com"]
[Date "2020.07.07"]
[Round "7"]
[White "RaunakSadhwani2005"]
[Black "tigra"]
[Result "1-0"]
[WhiteElo "2925"]
[BlackElo "2793"]
[TimeControl "180+1"]
[EndTime "11:19:25 PDT"]
[Termination "RaunakSadhwani2005 won by resignation"]

1. d4 {[%clk 0:03:00.9]} 1... Nf6 {[%clk 0:02:59]} 2. Bf4 {[%clk 0:03:00.1]}
2... d5 {[%clk 0:02:56.2]} 3. e3 {[%clk 0:02:57.3]} 3... e6 {[%clk 0:02:55.5]}
4. Nf3 {[%clk 0:02:56.5]} 4... b6 {[%clk 0:02:54.1]} 5. Nbd2 {[%clk 0:02:52.9]}
5... Bd6 {[%clk 0:02:50.6]} 6. Ne5 {[%clk 0:02:42.9]} 6... O-O {[%clk
0:02:48.7]} 7. h4 {[%clk 0:02:42.8]} 7... c5 {[%clk 0:02:48.4]} 8. h5 {[%clk
0:02:40.1]} 8... Qc7 {[%clk 0:02:41.1]} 9. h6 {[%clk 0:02:36.7]} 9... g6 {[%clk
0:02:41.1]} 10. Bd3 {[%clk 0:02:19]} 10... Ba6 {[%clk 0:02:23.9]} 11. Bxa6
{[%clk 0:02:16]} 11... Nxa6 {[%clk 0:02:24.8]} 12. c3 {[%clk 0:02:12.6]} 12...
b5 {[%clk 0:02:22.7]} 13. Qf3 {[%clk 0:02:10.8]} 13... b4 {[%clk 0:02:18.9]} 14.
Bg3 {[%clk 0:01:46.3]} 14... Ne8 {[%clk 0:02:12.6]} 15. Ng4 {[%clk 0:01:46]}
15... f5 {[%clk 0:01:50.3]} 16. Ne5 {[%clk 0:01:44.2]} 16... Nf6 {[%clk
0:01:39.6]} 17. O-O {[%clk 0:01:40.8]} 17... bxc3 {[%clk 0:01:26.3]} 18. bxc3
{[%clk 0:01:40.5]} 18... Rab8 {[%clk 0:01:19.5]} 19. c4 {[%clk 0:01:31.6]} 19...
cxd4 {[%clk 0:01:19.2]} 20. exd4 {[%clk 0:01:31.8]} 20... Ne4 {[%clk 0:01:17.2]}
21. Nxe4 {[%clk 0:01:21.2]} 21... dxe4 {[%clk 0:01:12.4]} 22. Qe3 {[%clk
0:01:13.3]} 22... Nb4 {[%clk 0:01:11.6]} 23. c5 {[%clk 0:01:12.9]} 23... f4
{[%clk 0:01:04.4]} 24. cxd6 {[%clk 0:01:01.2]} 24... Qxd6 {[%clk 0:01:02.7]} 25.
Qxe4 {[%clk 0:00:32.1]} 25... fxg3 {[%clk 0:01:02.4]} 26. fxg3 {[%clk 0:00:33]}
26... Qd5 {[%clk 0:00:59.8]} 27. Qxd5 {[%clk 0:00:24.4]} 27... Nxd5 {[%clk
0:00:58.5]} 28. Rxf8+ {[%clk 0:00:24.2]} 28... Rxf8 {[%clk 0:00:57.7]} 29. Rb1
{[%clk 0:00:24.5]} 29... Ne3 {[%clk 0:00:38.4]} 30. g4 {[%clk 0:00:24.1]} 30...
g5 {[%clk 0:00:29]} 31. Rb7 {[%clk 0:00:22.7]} 31... Rf1+ {[%clk 0:00:26.5]} 32.
Kh2 {[%clk 0:00:22.9]} 32... Rf2 {[%clk 0:00:26.3]} 33. Rg7+ {[%clk 0:00:19.2]}
33... Kf8 {[%clk 0:00:26]} 34. Rxh7 {[%clk 0:00:19.6]} 34... Rxg2+ {[%clk
0:00:24.3]} 35. Kh3 {[%clk 0:00:19.5]} 35... Rg1 {[%clk 0:00:24.6]} 36. Ng6+
{[%clk 0:00:18.6]} 36... Ke8 {[%clk 0:00:25]} 37. Re7+ {[%clk 0:00:18.9]} 37...
Kd8 {[%clk 0:00:25.5]} 38. h7 {[%clk 0:00:18.5]} 38... Rh1+ {[%clk 0:00:24.2]}
39. Kg3 {[%clk 0:00:18.6]} 1-0

[Event "*** SCC Grand Prix: Titled Tuesday Blitz"]
[Site "Chess.com"]
[Date "2020.07.07"]
[Round "7"]
[White "Korchmar_Vasiliy"]
[Black "platy3"]
[Result "1-0"]
[WhiteElo "2642"]
[BlackElo "2784"]
[TimeControl "180+1"]
[EndTime "11:19:25 PDT"]
[Termination "Korchmar_Vasiliy won on time"]

1. d4 {[%clk 0:03:00.9]} 1... Nf6 {[%clk 0:02:59.2]} 2. c4 {[%clk 0:03:01.1]}
2... e6 {[%clk 0:02:59.3]} 3. g3 {[%clk 0:03:01.2]} 3... c5 {[%clk 0:02:57.5]}
4. d5 {[%clk 0:03:01.1]} 4... exd5 {[%clk 0:02:57.8]} 5. cxd5 {[%clk 0:03:02]}
5... d6 {[%clk 0:02:58.7]} 6. Nc3 {[%clk 0:03:02.7]} 6... g6 {[%clk 0:02:59.1]}
7. Bg2 {[%clk 0:03:03.6]} 7... Bg7 {[%clk 0:02:59.6]} 8. Nf3 {[%clk 0:03:04.1]}
8... O-O {[%clk 0:03:00.3]} 9. O-O {[%clk 0:03:05]} 9... Re8 {[%clk 0:03:00.9]}
10. Bf4 {[%clk 0:03:04.9]} 10... Bf5 {[%clk 0:02:57]} 11. Bg5 {[%clk 0:03:04.4]}
11... h6 {[%clk 0:02:50.9]} 12. Bxf6 {[%clk 0:03:04.2]} 12... Bxf6 {[%clk
0:02:51.8]} 13. Nd2 {[%clk 0:03:04.9]} 13... Bc8 {[%clk 0:02:34.7]} 14. Nc4
{[%clk 0:02:56.3]} 14... Bxc3 {[%clk 0:02:26.7]} 15. bxc3 {[%clk 0:02:55.8]}
15... b5 {[%clk 0:02:27.2]} 16. Nd2 {[%clk 0:02:51.1]} 16... Nd7 {[%clk
0:02:23.3]} 17. e4 {[%clk 0:02:21.2]} 17... Ne5 {[%clk 0:02:16]} 18. f4 {[%clk
0:02:12.2]} 18... Ng4 {[%clk 0:01:52.3]} 19. Qf3 {[%clk 0:02:00.5]} 19... c4
{[%clk 0:01:50]} 20. Rae1 {[%clk 0:01:51.5]} 20... Nf6 {[%clk 0:01:27.4]} 21. e5
{[%clk 0:01:48.2]} 21... Qb6+ {[%clk 0:01:27.1]} 22. Kh1 {[%clk 0:01:47.5]}
22... Bg4 {[%clk 0:01:26.9]} 23. Qe3 {[%clk 0:01:32]} 23... Nd7 {[%clk
0:01:27.2]} 24. Qe4 {[%clk 0:01:10.8]} 24... Bf5 {[%clk 0:01:19.4]} 25. Qf3
{[%clk 0:01:04.4]} 25... dxe5 {[%clk 0:01:19.6]} 26. fxe5 {[%clk 0:00:43.2]}
26... Nxe5 {[%clk 0:01:15]} 27. Rxe5 {[%clk 0:00:42.3]} 27... Rxe5 {[%clk
0:01:14.4]} 28. g4 {[%clk 0:00:43.2]} 28... Qe3 {[%clk 0:00:52.9]} 29. Qxe3
{[%clk 0:00:39.5]} 29... Rxe3 {[%clk 0:00:53.8]} 30. gxf5 {[%clk 0:00:40.3]}
30... Rxc3 {[%clk 0:00:46.1]} 31. Ne4 {[%clk 0:00:25]} 31... Rd3 {[%clk
0:00:44.2]} 32. fxg6 {[%clk 0:00:20.6]} 32... fxg6 {[%clk 0:00:44.3]} 33. Rf6
{[%clk 0:00:07]} 1-0

[Event "*** SCC Grand Prix: Titled Tuesday Blitz"]
[Site "Chess.com"]
[Date "2020.07.07"]
[Round "7"]
[White "OhanyanEminChess"]
[Black "sasko1234"]
[Result "0-1"]
[WhiteElo "2505"]
[BlackElo "2406"]
[TimeControl "180+1"]
[EndTime "11:19:25 PDT"]
[Termination "sasko1234 won on time"]

1. e4 {[%clk 0:03:00.9]} 1... d6 {[%clk 0:03:00.1]} 2. d4 {[%clk 0:02:51.7]}
2... Nf6 {[%clk 0:02:59.8]} 3. Nc3 {[%clk 0:02:51.4]} 3... c6 {[%clk 0:03:00]}
4. f4 {[%clk 0:02:50.6]} 4... Qa5 {[%clk 0:02:59.2]} 5. Bd3 {[%clk 0:02:42.8]}
5... e5 {[%clk 0:02:58.8]} 6. dxe5 {[%clk 0:02:35.1]} 6... dxe5 {[%clk
0:02:58.5]} 7. fxe5 {[%clk 0:02:32.5]} 7... Ng4 {[%clk 0:02:49.2]} 8. Nf3 {[%clk
0:02:30.1]} 8... Nxe5 {[%clk 0:02:34.6]} 9. Nxe5 {[%clk 0:02:28.1]} 9... Qxe5
{[%clk 0:02:33.7]} 10. O-O {[%clk 0:02:28.6]} 10... Bd6 {[%clk 0:02:28.1]} 11.
Bf4 {[%clk 0:02:18.8]} 11... Qc5+ {[%clk 0:02:27.7]} 12. Kh1 {[%clk 0:02:18.5]}
12... Bxf4 {[%clk 0:02:27.7]} 13. Rxf4 {[%clk 0:02:19.4]} 13... O-O {[%clk
0:02:27]} 14. Rh4 {[%clk 0:02:05.8]} 14... h6 {[%clk 0:02:16.5]} 15. Rh5 {[%clk
0:01:59]} 15... Qe7 {[%clk 0:02:10.2]} 16. e5 {[%clk 0:01:52.7]} 16... Nd7
{[%clk 0:02:09]} 17. Qe2 {[%clk 0:01:40.9]} 17... Re8 {[%clk 0:02:01.2]} 18. Qe4
{[%clk 0:01:36.8]} 18... Nf8 {[%clk 0:01:45.1]} 19. Rf1 {[%clk 0:01:13]} 19...
Be6 {[%clk 0:01:40]} 20. Ne2 {[%clk 0:00:57.8]} 20... Rad8 {[%clk 0:01:20.2]}
21. Nd4 {[%clk 0:00:36.4]} 21... a6 {[%clk 0:00:43.7]} 22. Nf5 {[%clk
0:00:22.8]} 22... Bxf5 {[%clk 0:00:42.7]} 23. Qxf5 {[%clk 0:00:23.7]} 23... b5
{[%clk 0:00:36]} 24. Qg4 {[%clk 0:00:15.6]} 24... Rd5 {[%clk 0:00:24.8]} 25.
Rxh6 {[%clk 0:00:11.8]} 25... Rxe5 {[%clk 0:00:20.9]} 26. Rh3 {[%clk 0:00:04.6]}
26... Re1 {[%clk 0:00:18.9]} 27. Rf3 {[%clk 0:00:04.8]} 27... Rxf1+ {[%clk
0:00:18.4]} 28. Rxf1 {[%clk 0:00:05.7]} 28... Qe6 {[%clk 0:00:18]} 29. Qh4
{[%clk 0:00:04.1]} 29... c5 {[%clk 0:00:16.1]} 30. b3 {[%clk 0:00:02.2]} 30...
Qe5 {[%clk 0:00:13]} 31. h3 {[%clk 0:00:00.8]} 31... Re6 {[%clk 0:00:12.2]} 32.
Qf2 {[%clk 0:00:01.1]} 32... Rf6 {[%clk 0:00:11.8]} 33. Qg1 {[%clk 0:00:01.8]}
33... Rxf1 {[%clk 0:00:11.3]} 0-1